bitfinex/quotes_SOLUSD_20230402
["timestamp","ask_amount","ask_price","bid_price","bid_amount"]
[1680478500869,118.4734,20.548,20.534,10.0]
[1680478501050,118.4734,20.548,20.536,10.0]
[1680478501466,118.4734,20.548,20.538,10.0]
[1680478501857,118.4734,20.548,20.54,10.0]
[1680478502273,118.4734,20.548,20.539,17.0]
[1680478502970,118.4734,20.548,20.538,10.0]
[1680478503167,118.4734,20.548,20.539,17.0]
[1680478504169,118.4734,20.548,20.538,10.0]
[1680478504365,118.4734,20.548,20.539,17.0]
[1680478506571,118.4734,20.548,20.538,10.0]
[1680478506872,10.0,20.547,20.505,25.2418427]
[1680478507073,10.0,20.547,20.506,25.2418427]
[1680478507274,118.4734,20.548,20.506,25.2418427]
[1680478508379,118.4734,20.548,20.534,10.0]
[1680478508675,118.4734,20.548,20.536,10.0]
[1680478508876,118.4734,20.548,20.538,10.0]
[1680478509674,118.4734,20.548,20.534,10.0]
[1680478509876,10.0,20.547,20.534,10.0]
[1680478510261,10.0,20.547,20.506,25.2418427]
[1680478510473,10.0,20.547,20.533,17.0]
[1680478510777,10.0,20.547,20.531,19.468409]
[1680478511075,10.0,20.545,20.531,19.468409]
[1680478511479,10.0,20.539,20.531,19.468409]
[1680478512080,10.0,20.545,20.531,19.468409]
[1680478514166,10.0,20.545,20.527,127.5086]
[1680478514366,10.0,20.545,20.53,10.0]
[1680478514584,10.0,20.545,20.532,10.0]
[1680478514875,10.0,20.545,20.527,10.0]
[1680478514876,28.23,20.54,20.527,10.0]
[1680478515179,10.0,20.539,20.527,10.0]
[1680478516281,28.23,20.54,20.527,10.0]
[1680478516480,20.0,20.539,20.527,17.29416023]
[1680478516682,20.0,20.539,20.529,10.0]
[1680478516881,20.0,20.539,20.531,10.0]
[1680478517087,10.0,20.543,20.532,17.0]
[1680478517281,20.0,20.542,20.532,17.0]
[1680478519973,10.0,20.543,20.532,17.0]
[1680478520174,10.0,20.541,20.532,17.0]
[1680478520387,20.0,20.54,20.532,17.0]
[1680478520979,10.0,20.541,20.531,10.0]
[1680478521277,20.0,20.54,20.533,10.0]
[1680478521483,20.0,20.542,20.533,10.0]
[1680478521671,20.0,20.542,20.532,17.0]
[1680478522886,20.0,20.542,20.531,10.0]
[1680478523089,20.0,20.542,20.533,10.0]
[1680478523591,10.0,20.543,20.531,10.0]
[1680478523780,20.0,20.542,20.533,10.0]
[1680478524290,20.0,20.542,20.531,10.0]
[1680478524588,20.0,20.542,20.529,10.0]
[1680478524589,10.0,20.541,20.529,10.0]
[1680478524784,20.0,20.54,20.53,17.0]
[1680478525386,20.0,20.54,20.526,116.59156023]
[1680478525588,20.0,20.54,20.529,10.0]
[1680478525789,20.0,20.54,20.526,116.59156023]
[1680478525991,10.0,20.539,20.526,116.59156023]
[1680478528089,10.0,20.539,20.526,109.2974]
[1680478528591,10.0,20.539,20.524,7.29416023]
[1680478529877,10.0,20.539,20.527,10.0]
[1680478531474,20.0,20.54,20.527,10.0]
[1680478532285,48.23,20.54,20.527,10.0]
[1680478533391,48.23,20.54,20.529,10.0]
[1680478534687,48.23,20.54,20.527,10.0]
[1680478534888,48.23,20.54,20.529,10.0]
[1680478536290,48.23,20.54,20.53,17.0]
[1680478536492,20.0,20.54,20.53,17.0]
[1680478536994,10.0,20.542,20.53,17.0]
[1680478537187,20.0,20.541,20.53,17.0]
[1680478539884,20.0,20.541,20.529,10.0]
[1680478540193,20.0,20.541,20.53,17.0]
[1680478540503,20.0,20.541,20.528,17.0]
[1680478540902,20.0,20.541,20.529,10.0]
[1680478541197,10.0,20.542,20.531,10.0]
[1680478541495,10.0,20.54,20.532,17.0]
[1680478541879,20.0,20.541,20.532,17.0]
[1680478542079,20.0,20.539,20.532,17.0]
[1680478542291,310.84095493,20.57,20.529,10.0]
[1680478542292,115.2402,20.549,20.531,10.0]
[1680478542500,14.77137823,20.546,20.532,17.0]
[1680478542687,10.0,20.545,20.533,10.0]
[1680478542995,10.0,20.545,20.535,10.0]
[1680478543195,10.0,20.545,20.534,17.0]
[1680478544390,10.0,20.547,20.534,17.0]
[1680478546900,28.12,20.55,20.535,10.0]
[1680478547099,28.12,20.55,20.536,17.0]
[1680478547301,28.12,20.55,20.537,10.0]
[1680478547501,28.12,20.55,20.539,10.0]
[1680478548009,28.12,20.55,20.54,17.0]
[1680478548303,179.96900304,20.556,20.54,17.0]
[1680478548702,10.0,20.555,20.54,17.0]
[1680478549894,10.0,20.555,20.539,10.0]
[1680478550094,10.0,20.555,20.54,17.0]
[1680478550490,124.06456023,20.556,20.54,17.0]
[1680478551599,10.0,20.555,20.535,10.0]
[1680478551789,10.0,20.555,20.537,10.0]
[1680478552099,117.9734,20.548,20.539,10.0]
[1680478552289,117.9734,20.548,20.54,17.0]
[1680478557999,117.9734,20.548,20.535,10.0]
[1680478558394,117.9734,20.548,20.535,17.29416023]
[1680478559299,117.9734,20.548,20.537,10.0]
[1680478559505,117.9734,20.548,20.539,10.0]
[1680478560007,117.9734,20.548,20.54,17.0]
[1680478560316,117.9734,20.548,20.539,10.0]
[1680478560539,20.0,20.547,20.535,10.0]
[1680478560812,7.29416023,20.546,20.519,14.57931809]
[1680478561013,28.23,20.53,20.519,14.57931809]
[1680478561195,28.23,20.53,20.516,113.1576]
[1680478561713,28.23,20.53,20.517,10.0]
[1680478565215,10.0,20.527,20.523,19.476465]
[1680478565406,10.0,20.527,20.508,122.2051]
[1680478565615,10.0,20.527,20.51,10.0]
[1680478565815,10.0,20.527,20.511,17.0]
[1680478566115,10.0,20.529,20.511,17.0]
[1680478566116,28.23,20.53,20.511,17.0]
[1680478566419,10.0,20.528,20.512,10.0]
[1680478566620,10.0,20.528,20.514,10.0]
[1680478566917,10.0,20.528,20.515,17.0]
[1680478567106,10.0,20.528,20.516,10.0]
[1680478568001,20.0,20.529,20.516,10.0]
[1680478571119,28.23,20.53,20.517,17.0]
[1680478571414,113.9758,20.537,20.519,10.0]
[1680478571807,113.9758,20.537,20.52,17.0]
[1680478572009,113.9758,20.537,20.521,10.0]
[1680478572319,113.9758,20.537,20.523,10.0]
[1680478572507,113.9758,20.537,20.524,17.0]
[1680478575621,113.9758,20.537,20.525,10.0]
[1680478575822,113.9758,20.537,20.526,17.0]
[1680478577408,28.23,20.54,20.527,10.0]
[1680478577607,28.23,20.54,20.528,17.0]
[1680478577913,28.23,20.54,20.529,10.0]
[1680478578118,28.23,20.54,20.531,10.0]
[1680478578821,28.23,20.54,20.529,10.0]
[1680478579021,28.23,20.54,20.531,10.0]
[1680478580025,28.23,20.54,20.529,10.0]
[1680478580218,28.23,20.54,20.531,10.0]
[1680478580608,28.23,20.54,20.529,10.0]
[1680478580809,28.23,20.54,20.531,10.0]
[1680478582620,28.23,20.54,20.53,17.0]
[1680478585547,19.485709,20.542,20.53,17.0]
[1680478585727,19.485709,20.542,20.53,24.29416023]
[1680478586326,19.485709,20.542,20.531,10.0]
[1680478586631,19.485709,20.542,20.533,10.0]
[1680478586926,19.485709,20.542,20.535,10.0]
[1680478587311,19.485709,20.542,20.537,10.0]
[1680478587711,19.485709,20.542,20.536,17.0]
[1680478590625,19.485709,20.542,20.535,10.0]
[1680478590834,19.485709,20.542,20.537,10.0]
[1680478591537,19.485709,20.542,20.535,10.0]
[1680478591830,19.485709,20.542,20.536,17.0]
[1680478593135,19.485709,20.542,20.52,28.1]
[1680478593437,19.485709,20.542,20.532,10.0]
[1680478593617,19.485709,20.542,20.534,10.0]
[1680478593818,19.485709,20.542,20.52,56.09]
[1680478594147,19.485709,20.542,20.528,7.29416023]
[1680478594440,19.485709,20.542,20.53,7.29416023]
[1680478594614,19.485709,20.542,20.531,10.0]
[1680478594949,117.9734,20.548,20.531,17.29416023]
[1680478595119,117.9734,20.548,20.533,10.0]
[1680478595427,117.9734,20.548,20.535,10.0]
[1680478595620,117.9734,20.548,20.536,17.0]
[1680478602047,117.9734,20.548,20.51,77.01]
[1680478602251,28.23,20.54,20.528,10.0]
[1680478602425,28.23,20.54,20.529,20.0]
[1680478602624,117.9734,20.548,20.529,20.0]
[1680478602937,117.9734,20.548,20.53,17.29416023]
[1680478603539,117.9734,20.548,20.532,10.0]
[1680478603739,117.9734,20.548,20.534,10.0]
[1680478604145,117.9734,20.548,20.536,10.0]
[1680478604446,117.9734,20.548,20.537,17.0]
[1680478605031,117.9734,20.548,20.536,10.0]
[1680478605338,10.0,20.547,20.537,17.0]
[1680478605849,10.0,20.547,20.535,17.0]
[1680478606631,10.0,20.547,20.534,10.0]
[1680478606834,10.0,20.547,20.535,17.0]
[1680478607721,10.0,20.547,20.534,10.0]
[1680478607941,10.0,20.547,20.535,17.0]
[1680478609444,10.0,20.547,20.534,10.0]
[1680478609748,10.0,20.547,20.535,17.0]
[1680478610849,17.0,20.546,20.53,29.469337]
[1680478611058,28.23,20.54,20.53,19.469337]
[1680478611356,10.0,20.539,20.53,19.469337]
[1680478612159,28.23,20.54,20.53,19.469337]
[1680478612342,10.0,20.545,20.532,10.0]
[1680478614347,10.0,20.545,20.531,10.0]
[1680478616450,10.0,20.545,20.53,19.469337]
[1680478620460,10.0,20.545,20.529,20.0]
[1680478620656,10.0,20.545,20.53,17.0]
[1680478620950,28.1,20.54,20.529,10.0]
[1680478621158,28.1,20.54,20.528,20.0]
[1680478621354,10.0,20.539,20.528,20.0]
[1680478621837,28.1,20.54,20.528,20.0]
[1680478622047,28.1,20.54,20.529,10.0]
[1680478622231,63.64416023,20.55,20.529,27.0]
[1680478624737,10.0,20.547,20.529,27.0]
[1680478629757,28.01,20.54,20.528,20.0]
[1680478633461,28.01,20.54,20.528,10.0]
[1680478633659,28.01,20.54,20.529,20.0]
[1680478633857,28.01,20.54,20.53,10.0]
[1680478635167,27.0,20.545,20.53,10.0]
[1680478635341,117.9734,20.548,20.53,10.0]
[1680478636547,10.0,20.547,20.53,10.0]
[1680478639145,10.0,20.547,20.529,20.0]
[1680478639348,10.0,20.547,20.531,10.0]
[1680478639872,10.0,20.547,20.529,20.0]
[1680478639873,28.1,20.54,20.529,20.0]
[1680478640051,10.0,20.539,20.527,20.0]
[1680478640662,10.0,20.539,20.526,10.0]
[1680478640849,10.0,20.539,20.528,10.0]
[1680478641048,10.0,20.539,20.529,20.0]
[1680478642068,28.1,20.54,20.529,20.0]
[1680478643965,28.1,20.54,20.528,10.0]
[1680478644263,28.1,20.54,20.53,10.0]
[1680478645066,28.1,20.54,20.528,10.0]
[1680478645266,28.1,20.54,20.53,10.0]
[1680478647057,28.1,20.54,20.528,10.0]
[1680478647257,28.1,20.54,20.53,10.0]
[1680478649471,28.1,20.54,20.532,10.0]
[1680478650772,28.1,20.54,20.531,17.0]
[1680478651970,114.5869,20.546,20.531,17.0]
[1680478652164,117.9734,20.548,20.531,17.0]
[1680478652361,117.9734,20.548,20.532,10.0]
[1680478652565,10.0,20.547,20.532,10.0]
[1680478653373,10.0,20.547,20.534,10.0]
[1680478653578,10.0,20.547,20.532,10.0]
[1680478653871,10.0,20.547,20.534,10.0]
[1680478657479,10.0,20.547,20.533,17.0]
[1680478661477,117.9734,20.548,20.534,10.0]
[1680478661677,117.9734,20.548,20.536,10.0]
[1680478661882,117.9734,20.548,20.537,17.0]
[1680478662183,117.9734,20.548,20.538,10.0]
[1680478662386,117.9734,20.548,20.54,10.0]
[1680478662879,117.9734,20.548,20.539,17.0]
[1680478663269,117.9734,20.548,20.538,10.0]
[1680478663468,117.9734,20.548,20.534,10.0]
[1680478663469,10.0,20.547,20.534,10.0]
[1680478663671,10.0,20.547,20.536,10.0]
[1680478665076,10.0,20.547,20.535,17.0]
[1680478667278,117.9734,20.548,20.535,17.0]
[1680478671991,117.9734,20.548,20.536,10.0]
[1680478672182,117.9734,20.548,20.537,17.0]
[1680478672377,117.9734,20.548,20.538,10.0]
[1680478672782,117.9734,20.548,20.531,132.59649094]
[1680478673576,117.9734,20.548,20.531,14.33989094]
[1680478674288,117.9734,20.548,20.533,17.0]
[1680478674482,117.9734,20.548,20.534,10.0]
[1680478674684,117.9734,20.548,20.536,10.0]
[1680478674881,117.9734,20.548,20.538,10.0]
[1680478675282,117.9734,20.548,20.536,10.0]
[1680478675482,117.9734,20.548,20.538,10.0]
[1680478675682,117.9734,20.548,20.536,10.0]
[1680478675883,117.9734,20.548,20.538,10.0]
[1680478676195,117.9734,20.548,20.537,17.0]
[1680478677296,117.9734,20.548,20.536,10.0]
[1680478677595,117.9734,20.548,20.538,10.0]
[1680478677792,117.9734,20.548,20.539,17.0]
[1680478678597,117.9734,20.548,20.536,10.0]
[1680478678798,117.9734,20.548,20.504,1077.8715427]
[1680478678998,10.0,20.547,20.533,17.0]
[1680478679200,10.0,20.547,20.534,10.0]
[1680478679385,10.0,20.547,20.536,10.0]
[1680478679585,10.0,20.547,20.535,17.0]
[1680478680788,10.0,20.547,20.534,10.0]
[1680478680987,10.0,20.547,20.535,17.0]
[1680478681399,10.0,20.547,20.534,10.0]
[1680478681602,10.0,20.547,20.536,10.0]
[1680478681792,10.0,20.547,20.534,10.0]
[1680478681985,117.9734,20.548,20.536,10.0]
[1680478682805,117.9734,20.548,20.537,17.0]
[1680478682990,117.9734,20.548,20.538,10.0]
[1680478683192,117.9734,20.548,20.539,17.0]
[1680478684605,117.9734,20.548,20.538,10.0]
[1680478684797,117.9734,20.548,20.539,17.0]
[1680478685198,10.0,20.554,20.539,17.0]
[1680478685400,10.0,20.554,20.54,10.0]
[1680478685703,10.0,20.554,20.542,10.0]
[1680478686202,10.0,20.554,20.54,10.0]
[1680478686396,10.0,20.554,20.542,10.0]
[1680478686998,10.0,20.554,20.541,17.0]
[1680478687989,10.0,20.554,20.54,10.0]
[1680478688189,10.0,20.554,20.542,10.0]
[1680478688795,10.0,20.554,20.54,10.0]
[1680478689596,10.0,20.552,20.538,10.0]
[1680478689807,10.0,20.55,20.54,10.0]
[1680478690003,10.0,20.55,20.538,10.0]
[1680478690309,38.23,20.55,20.534,10.0]
[1680478691805,38.23,20.55,20.535,17.0]
[1680478692011,38.23,20.55,20.536,10.0]
[1680478694205,66.46,20.55,20.532,7.29416023]
[1680478694513,10.0,20.548,20.528,10.0]
[1680478694708,17.0,20.547,20.529,20.0]
[1680478695015,10.0,20.546,20.53,10.0]
[1680478695909,10.0,20.546,20.532,10.0]
[1680478697113,10.0,20.546,20.531,17.0]
[1680478699806,10.0,20.546,20.531,10.0]
[1680478701829,10.0,20.544,20.531,10.0]
[1680478702731,10.0,20.544,20.53,10.0]
[1680478703026,10.0,20.544,20.529,20.0]
[1680478703229,10.0,20.542,20.529,20.0]
[1680478704314,10.0,20.544,20.529,20.0]
[1680478704625,10.0,20.542,20.529,20.0]
[1680478712030,10.0,20.539,20.529,20.0]
[1680478712412,28.23,20.54,20.529,20.0]
[1680478713923,28.23,20.54,20.529,10.0]
[1680478717536,28.23,20.54,20.528,10.0]
[1680478718117,28.23,20.54,20.527,10.0]
[1680478718317,28.23,20.54,20.524,7.29416023]
[1680478718718,28.23,20.54,20.527,10.0]
[1680478721736,28.23,20.54,20.529,10.0]
[1680478724741,28.23,20.54,20.531,10.0]
[1680478724944,28.23,20.54,20.529,10.0]
[1680478725240,28.23,20.54,20.531,10.0]
[1680478725745,10.0,20.544,20.531,10.0]
[1680478726328,10.0,20.544,20.53,17.0]
[1680478731947,10.0,20.544,20.529,10.0]
[1680478732248,10.0,20.544,20.531,10.0]
[1680478733349,10.0,20.544,20.529,10.0]
[1680478733550,10.0,20.544,20.531,10.0]
[1680478734853,10.0,20.544,20.53,17.0]
[1680478742752,10.0,20.545,20.53,17.0]
[1680478743256,14.81693838,20.546,20.531,10.0]
[1680478743460,109.2354,20.548,20.532,17.0]
[1680478743754,109.2354,20.548,20.533,10.0]
[1680478743957,109.2354,20.548,20.535,10.0]
[1680478744443,109.2354,20.548,20.537,10.0]
[1680478744641,109.2354,20.548,20.536,17.0]
[1680478745553,109.2354,20.548,20.535,10.0]
[1680478745748,109.2354,20.548,20.536,17.0]
[1680478748455,109.2354,20.548,20.535,10.0]
[1680478748660,109.2354,20.548,20.536,17.0]
[1680478749249,109.2354,20.548,20.535,10.0]
[1680478749458,109.2354,20.548,20.536,17.0]
[1680478750139,109.2354,20.548,20.535,10.0]
[1680478750343,109.2354,20.548,20.536,17.0]
[1680478751739,109.2354,20.548,20.535,10.0]
[1680478752065,109.2354,20.548,20.537,10.0]
[1680478752450,109.2354,20.548,20.535,10.0]
[1680478752755,109.2354,20.548,20.537,10.0]
[1680478753963,109.2354,20.548,20.536,17.0]
[1680478755866,109.2354,20.548,20.533,10.0]
[1680478755867,109.2354,20.548,20.535,10.0]
[1680478756058,109.2354,20.548,20.536,17.0]
[1680478763058,109.2354,20.548,20.535,10.0]
[1680478763368,109.2354,20.548,20.537,10.0]
[1680478763664,109.2354,20.548,20.535,10.0]
[1680478763860,10.0,20.547,20.533,10.0]
[1680478765482,22.57,20.55,20.535,10.0]
[1680478765765,22.57,20.55,20.547,0.11033372]
[1680478766070,10.0,20.555,20.547,0.11033372]
[1680478767367,22.53,20.56,20.547,0.11033372]
[1680478769274,10.0,20.555,20.547,0.11033372]
[1680478769580,27.0,20.555,20.547,0.11033372]
[1680478769884,74.5168294,20.555,20.547,0.11033372]
[1680478770563,74.5168294,20.555,20.547,0.01198905]
[1680478772160,27.0,20.555,20.547,0.01198905]
[1680478773674,14.77250595,20.557,20.547,0.01198905]
[1680478773975,10.0,20.558,20.547,0.01198905]
[1680478774279,10.0,20.556,20.547,0.01198905]
[1680478781387,10.0,20.557,20.547,0.01198905]
[1680478781681,24.2774227,20.558,20.547,0.01198905]
[1680478786785,10.0,20.556,20.547,0.01198905]
[1680478787172,10.0,20.556,20.53,14.53805961]
[1680478787173,17.0,20.555,20.53,14.53805961]
[1680478787374,56.23,20.55,20.53,14.53805961]
[1680478787589,20.0,20.549,20.519,14.66517222]
[1680478787772,20.0,20.549,20.52,28.01]
[1680478787773,17.0,20.548,20.52,28.01]
[1680478787973,20.0,20.547,20.52,28.01]
[1680478788169,20.0,20.547,20.52,143.1657]
[1680478788170,17.0,20.546,20.52,143.1657]
[1680478788377,20.0,20.545,20.521,10.0]
[1680478788588,17.0,20.544,20.521,10.0]
[1680478788791,28.08,20.54,20.521,10.0]
[1680478788993,37.0,20.539,20.521,10.0]
[1680478789194,10.0,20.538,20.521,10.0]
[1680478790685,10.0,20.538,20.523,10.0]
[1680478790889,10.0,20.538,20.525,10.0]
[1680478792195,10.0,20.538,20.527,10.0]
[1680478792586,10.0,20.538,20.525,10.0]
[1680478795294,20.0,20.539,20.525,10.0]
[1680478795592,19.91395459,20.539,20.525,10.0]
[1680478802295,19.91395459,20.539,20.524,17.0]
[1680478805295,10.0,20.538,20.524,17.0]
[1680478808506,10.0,20.538,20.524,17.0]
[1680478808889,10.0,20.538,20.523,10.0]
[1680478809097,10.0,20.536,20.523,10.0]
[1680478809688,10.0,20.536,20.52,20.0]
[1680478809988,28.17,20.53,20.52,20.0]
[1680478810190,10.0,20.529,20.52,20.0]
[1680478812804,10.0,20.527,20.513,116.841]
[1680478813711,10.0,20.527,20.513,131.11295563]
[1680478815094,10.0,20.529,20.513,131.11295563]
[1680478815601,10.0,20.527,20.513,131.11295563]
[1680478816401,10.0,20.529,20.513,131.11295563]
[1680478816599,10.0,20.527,20.513,131.11295563]
[1680478817706,10.0,20.529,20.516,10.0]
[1680478817915,10.0,20.527,20.516,10.0]
[1680478818311,20.0,20.528,20.516,10.0]
[1680478818910,10.0,20.528,20.516,10.0]
[1680478819112,20.0,20.529,20.516,10.0]
[1680478819713,10.0,20.528,20.516,10.0]
[1680478819914,20.0,20.529,20.516,10.0]
[1680478821705,20.0,20.529,20.518,10.0]
[1680478823817,20.0,20.529,20.516,10.0]
[1680478824011,34.33626872,20.529,20.516,10.0]
[1680478832231,34.33626872,20.529,20.513,131.11295563]
[1680478832717,10.0,20.527,20.513,131.11295563]
[1680478834125,10.0,20.525,20.513,131.11295563]
[1680478836213,10.0,20.527,20.513,131.11295563]
[1680478836427,10.0,20.525,20.513,131.11295563]
[1680478839533,17.0,20.526,20.513,131.11295563]
[1680478840241,10.0,20.527,20.513,131.11295563]
[1680478846734,27.0,20.528,20.513,131.11295563]
[1680478846937,17.0,20.528,20.513,131.11295563]
[1680478847539,34.33626872,20.529,20.513,131.11295563]
[1680478848840,34.33626872,20.529,20.517,10.0]
[1680478849927,34.33626872,20.529,20.516,10.0]
[1680478850127,10.0,20.528,20.513,131.11295563]
[1680478861435,34.33626872,20.529,20.513,131.11295563]
[1680478861636,10.0,20.527,20.513,131.11295563]
[1680478863742,10.0,20.525,20.513,131.11295563]
[1680478864343,10.0,20.525,20.513,116.841]
[1680478865344,10.0,20.527,20.513,116.841]
[1680478865544,10.0,20.525,20.513,116.841]
[1680478867643,17.0,20.526,20.513,116.841]
[1680478870654,34.33626872,20.529,20.513,116.841]
[1680478870854,10.0,20.527,20.513,116.841]
[1680478871448,10.0,20.525,20.513,116.841]
[1680478872554,17.0,20.526,20.513,116.841]
[1680478874650,10.0,20.526,20.513,116.841]
[1680478876055,17.0,20.527,20.513,116.841]
[1680478883451,10.0,20.527,20.513,116.841]
[1680478884164,27.0,20.528,20.513,116.841]
[1680478884660,10.0,20.527,20.513,116.841]
[1680478886772,27.0,20.528,20.513,116.841]
[1680478887362,17.0,20.528,20.513,116.841]
[1680478892470,34.33626872,20.529,20.513,116.841]
[1680478892855,10.0,20.527,20.513,116.841]
[1680478897973,10.0,20.525,20.513,116.841]
[1680478898573,17.0,20.526,20.513,116.841]
[1680478903571,10.0,20.526,20.513,116.841]
[1680478903765,17.0,20.525,20.513,116.841]
[1680478905276,10.0,20.528,20.513,116.841]
[1680478905478,34.33626872,20.529,20.516,10.0]
[1680478906885,34.33626872,20.529,20.518,10.0]
[1680478907668,10.0,20.536,20.518,17.29416023]
[1680478907875,10.0,20.539,20.519,17.0]
[1680478908189,10.0,20.539,20.52,10.0]
[1680478908364,10.0,20.539,20.522,10.0]
[1680478908565,10.0,20.539,20.524,10.0]
[1680478908887,10.0,20.539,20.526,10.0]
[1680478909187,10.0,20.537,20.526,10.0]
[1680478909370,10.0,20.537,20.524,10.0]
[1680478913985,10.0,20.537,20.522,10.0]
[1680478914191,10.0,20.535,20.522,10.0]
[1680478914982,10.0,20.535,20.521,111.564]
[1680478921082,10.0,20.533,20.521,111.564]
[1680478921275,17.0,20.532,20.521,111.564]
[1680478921478,10.0,20.531,20.521,111.564]
[1680478921898,28.21,20.53,20.521,111.564]
[1680478924495,20.0,20.529,20.521,111.564]
[1680478924691,27.0,20.528,20.521,111.564]
[1680478924891,27.0,20.528,20.5,56.42]
[1680478925081,27.0,20.528,20.513,118.7159]
[1680478926593,17.0,20.528,20.513,118.7159]
[1680478926793,10.0,20.528,20.513,118.7159]
[1680478926986,10.0,20.526,20.513,118.7159]
[1680478927594,10.0,20.528,20.513,118.7159]
[1680478927795,10.0,20.526,20.513,118.7159]
[1680478928792,17.0,20.527,20.513,118.7159]
[1680478937105,10.0,20.528,20.516,10.0]
[1680478937303,17.0,20.529,20.516,10.0]
[1680478937508,10.0,20.527,20.516,10.0]
[1680478937709,20.0,20.528,20.516,10.0]
[1680478940318,20.0,20.528,20.517,17.0]
[1680478940495,20.0,20.529,20.518,10.0]
[1680478952211,10.0,20.532,20.518,10.0]
[1680478952403,10.0,20.53,20.518,10.0]
[1680478952604,20.0,20.529,20.518,10.0]
[1680478953603,10.0,20.53,20.518,10.0]
[1680478953818,20.0,20.529,20.518,10.0]
[1680478954912,20.0,20.531,20.518,10.0]
[1680478955211,10.0,20.53,20.518,10.0]
[1680478955422,20.0,20.529,20.518,10.0]
[1680478956526,20.0,20.529,20.516,10.0]
[1680478956728,20.0,20.529,20.518,10.0]
[1680478957219,10.0,20.53,20.518,10.0]
[1680478957407,20.0,20.529,20.518,10.0]
[1680478958917,20.0,20.531,20.518,10.0]
[1680478959119,10.0,20.53,20.518,10.0]
[1680478959308,10.0,20.528,20.518,10.0]
[1680478959921,10.0,20.53,20.518,10.0]
[1680478960222,10.0,20.528,20.518,10.0]
[1680478960423,10.0,20.528,20.513,118.7159]
[1680478963927,38.17,20.53,20.513,118.7159]
[1680478964228,10.0,20.528,20.513,118.7159]
[1680478966417,17.0,20.529,20.513,118.7159]
[1680478966630,10.0,20.527,20.513,118.7159]
[1680478969028,10.0,20.528,20.513,118.7159]
[1680478969329,10.0,20.526,20.513,118.7159]
[1680478969726,17.0,20.527,20.513,118.7159]
[1680478976221,10.0,20.528,20.513,118.7159]